bitfinex/quotes_ETHUSD_20250505
["timestamp","ask_amount","ask_price","bid_price","bid_amount"]
[1746407872933,6.29439574,1816.5,1816.2,19.137]
[1746407873236,5.50495422,1816.6,1816.3,0.8203]
[1746407873237,5.50494639,1816.6,1816.3,0.8203]
[1746407874232,5.5046558,1816.7,1816.3,6.32595159]
[1746407874834,5.50481619,1816.6,1816.3,0.8203]
[1746407875929,5.5046558,1816.7,1816.3,6.3257919]
[1746407876310,5.50500178,1816.6,1816.3,0.8203]
[1746407876514,5.50520612,1816.5,1816.3,0.8203]
[1746407877245,5.50548169,1816.4,1816.1,0.7732]
[1746407877739,5.50548169,1816.4,1816.1,15.2732]
[1746407879014,1.10105781,1816.4,1816.1,15.2732]
[1746407879250,5.5052492,1816.5,1816.1,15.2732]
[1746407879447,5.50557355,1816.4,1816.1,15.2732]
[1746407879664,5.50557355,1816.4,1816.2,0.1615865]
[1746407880157,5.50557355,1816.4,1816.3,0.16217499]
[1746407880517,5.50583532,1816.3,1816.1,14.5]
[1746407880718,5.50552269,1816.4,1816.2,0.16232212]
[1746407880918,5.50552269,1816.4,1816.1,15.3293]
[1746407881151,5.50527154,1816.5,1816.2,0.16232212]
[1746407881343,5.50454184,1816.7,1816.4,0.8293]
[1746407881517,5.50439692,1816.8,1816.4,0.8293]
[1746407881854,5.50439692,1816.8,1816.5,0.16268996]
[1746407882154,3.68167667,1816.6,1816.5,0.16268996]
[1746407884251,9.18646583,1816.6,1816.5,0.16268996]
[1746407884457,10.65557378,1816.6,1816.5,0.16268996]
[1746407884784,0.7851,1816.5,1816.2,6.15]
[1746407885089,5.50550806,1816.4,1816.2,6.15]
[1746407886175,5.50526704,1816.5,1816.2,6.15]
[1746407886872,5.42319465,1816.7,1816.2,6.15]
[1746407887065,5.50563716,1816.4,1816.2,6.15]
[1746407889478,5.50523557,1816.5,1816.1,20.00625125]
[1746407889667,9.18663074,1816.6,1816.2,0.7607]
[1746407890043,5.50515975,1816.5,1816.2,0.7607]
[1746407890480,5.50515975,1816.5,1816.2,15.2607]
[1746407891738,14.6915298,1816.6,1816.2,6.26669736]
[1746407891946,5.50583992,1816.3,1815.9,5.50689371]
[1746407892297,5.50557964,1816.4,1816.0,20.76028482]
[1746407893084,5.50580915,1816.3,1816.0,15.2538]
[1746407893378,0.55,1816.4,1815.8,5.4469]
[1746407893683,5.50631733,1816.1,1815.8,5.4469]
[1746407893882,0.807,1816.2,1815.8,5.4469]
[1746407894066,0.807,1816.2,1815.7,0.8109]
[1746407894245,5.50674567,1816.0,1815.7,0.8109]
[1746407894441,5.50674567,1816.0,1815.7,15.3109]
[1746407894680,5.50674567,1816.0,1815.8,0.15023179]
[1746407894681,11.01363486,1816.0,1815.8,0.15023179]
[1746407895372,5.50674567,1816.0,1815.8,0.15023179]
[1746407896381,6.28191117,1815.9,1815.8,0.15023179]
[1746407896680,5.50766823,1815.7,1815.5,6.15]
[1746407897898,5.50733467,1815.8,1815.4,0.7503]
[1746407898049,5.50773043,1815.7,1815.4,0.7503]
[1746407899904,5.50734672,1815.8,1815.4,6.25870283]
[1746407900188,6.28205996,1815.9,1815.5,5.50809844]
[1746407900345,5.50705996,1815.9,1815.4,9.34887215]
[1746407900550,5.50797617,1815.6,1815.4,0.7503]
[1746407901693,5.50725872,1815.8,1815.4,6.31363225]
[1746407901878,1.24468568,1815.9,1815.5,5.50812416]
[1746407901879,5.50705581,1815.9,1815.5,5.50812416]
[1746407902078,5.50705581,1815.9,1815.5,6.85440927]
[1746407903091,11.01421821,1815.9,1815.5,6.85440927]
[1746407903388,5.50705581,1815.9,1815.5,6.85440927]
[1746407903771,11.01422559,1815.9,1815.5,6.85440927]
[1746407903959,5.50705581,1815.9,1815.5,6.85440927]
[1746407904770,5.50764885,1815.7,1815.4,0.7503]
[1746407905313,5.50803311,1815.6,1815.4,0.7503]
[1746407905455,5.50812448,1815.5,1815.3,0.8205]
[1746407907100,5.5080115,1815.6,1815.3,0.8205]
[1746407908479,5.50816103,1815.5,1815.3,0.8205]
[1746407908786,5.50768639,1815.7,1815.3,0.8205]
[1746407908955,5.50796682,1815.6,1815.3,0.8205]
[1746407909302,6.30539449,1815.7,1815.3,0.8205]
[1746407909603,5.50785703,1815.6,1815.4,0.16081747]
[1746407911811,6.30544033,1815.7,1815.4,0.16081747]
[1746407912370,5.50784193,1815.6,1815.4,0.16081747]
[1746407912988,6.68917016,1815.6,1815.4,0.16081747]
[1746407913193,5.50812448,1815.5,1815.4,0.16081747]
[1746407913395,5.50812448,1815.5,1815.2,6.9255]
[1746407913705,5.50812448,1815.5,1815.4,0.16081747]
[1746407913901,5.50844098,1815.4,1815.2,6.9255]
[1746407914678,5.50814759,1815.5,1815.2,6.9255]
[1746407915485,11.01652026,1815.5,1815.2,6.9255]
[1746407915682,5.50846417,1815.4,1815.2,0.7755]
[1746407915918,5.50890925,1815.3,1815.0,5.4531]
[1746407916117,5.5091679,1815.2,1815.0,5.4531]
[1746407916420,6.31859177,1815.1,1814.8,6.15]
[1746407916791,5.50949177,1815.1,1814.8,6.15]
[1746407917614,5.50920558,1815.2,1814.8,6.15]
[1746407917807,5.50920558,1815.2,1814.8,11.66022544]
[1746407918215,5.50920558,1815.2,1814.8,6.15]
[1746407918400,5.5093436,1815.1,1814.8,6.15]
[1746407919213,6.10531487,1815.2,1814.8,6.15]
[1746407919371,6.868055,1815.3,1814.8,17.1701475]
[1746407919575,6.868055,1815.3,1814.8,11.66007164]
[1746407919576,12.37707293,1815.3,1814.8,11.66007164]
[1746407919816,6.318055,1815.3,1814.9,6.28219744]
[1746407920275,5.5091557,1815.2,1814.9,0.7723]
[1746407921074,5.50884934,1815.3,1814.9,6.28222764]
[1746407921317,4.75252239,1815.5,1815.1,5.50925543]
[1746407921511,5.50855718,1815.4,1815.0,5.50950915]
[1746407921808,5.50885054,1815.3,1814.9,8.07627364]
[1746407922742,5.50856958,1815.4,1815.0,5.50963255]
[1746407923048,5.50844044,1815.4,1815.0,5.50940566]
[1746407923252,5.93231672,1815.4,1815.0,5.50940566]
[1746407923722,5.50844044,1815.4,1815.0,5.50940566]
[1746407924044,11.89774412,1815.5,1815.1,5.5093201]
[1746407924235,11.89774412,1815.5,1815.2,0.7736]
[1746407924636,13.53883877,1815.5,1815.3,0.16501064]
[1746407924845,5.50857001,1815.4,1815.0,6.28308598]
[1746407925823,13.53894147,1815.5,1815.0,6.28300371]
[1746407926045,13.53894147,1815.5,1815.1,5.50933109]
[1746407926251,5.50847299,1815.4,1815.0,6.28300371]
[1746407926438,5.50847299,1815.4,1815.0,7.46228919]
[1746407928331,5.50876541,1815.3,1815.0,1.95288548]
[1746407928654,11.01773639,1815.3,1814.9,5.50982363]
[1746407928857,5.50948215,1815.1,1814.8,10.787]
[1746407929061,0.8115,1815.0,1814.8,6.15]
[1746407929222,5.50994545,1814.9,1814.6,0.7919]
[1746407929421,6.14208999,1814.9,1814.5,6.15]
[1746407929661,5.51035689,1814.8,1814.5,6.15]
[1746407931045,5.51012908,1814.9,1814.5,11.66111849]
[1746407933441,5.51012908,1814.9,1814.5,5.51111849]
[1746407934966,5.50994545,1814.9,1814.4,7.94425108]
[1746407935138,6.06135502,1814.8,1814.4,0.7919]
[1746407935343,0.7648,1814.7,1814.4,6.30333209]
[1746407938076,6.27540091,1814.7,1814.4,0.7919]
[1746407938282,2.40589465,1814.7,1814.1,6.15]
[1746407938486,0.7885,1814.2,1813.8,6.15]
[1746407938780,0.55,1814.1,1813.7,5.5135465]
[1746407938983,0.55,1814.1,1813.6,0.7879]
[1746407938984,0.96767303,1814.1,1813.8,5.51314699]
[1746407939280,6.48025236,1814.1,1813.6,0.7879]
[1746407939453,6.48025236,1814.1,1813.5,5.5141111]
[1746407939454,5.51291521,1814.0,1813.5,5.5141111]
[1746407939779,0.7885,1813.9,1813.7,0.15405667]
[1746407939944,0.7885,1813.9,1813.6,5.5138922]
[1746407940138,0.7885,1813.9,1813.8,0.15405667]
[1746407940345,0.7885,1814.1,1813.6,0.7879]
[1746407940572,0.7885,1814.1,1813.8,5.51325858]
[1746407941111,0.7885,1814.1,1813.9,0.15405667]
[1746407941286,5.51267916,1814.0,1813.9,0.15405667]
[1746407941496,5.51314857,1813.9,1813.4,0.772]
[1746407942144,5.51314857,1813.9,1813.3,10.56377855]
[1746407942145,5.51401377,1813.6,1813.3,0.4120159]
[1746407942404,6.3096712,1813.7,1813.3,1.1840159]
[1746407942550,5.51338535,1813.8,1813.3,1.1840159]
[1746407942876,6.30902416,1813.9,1813.4,7.15541711]
[1746407943076,6.30902416,1813.9,1813.4,1.64109465]
[1746407943284,6.30902416,1813.9,1813.3,8.16802637]
[1746407943285,6.30902416,1813.9,1813.3,19.19726465]
[1746407943489,6.30902416,1813.9,1813.3,13.68260645]
[1746407943890,11.82229675,1813.9,1813.3,13.68260645]
[1746407944255,5.5133426,1813.8,1813.3,13.68259602]
[1746407944578,6.30923932,1813.9,1813.3,13.68259602]
[1746407944791,6.30923932,1813.9,1813.4,1.3682596]
[1746407944996,5.51332982,1813.8,1813.4,6.8827461]
[1746407945416,6.30923932,1813.9,1813.4,6.9378855]
[1746407945723,5.51414053,1813.6,1813.3,7.3340159]
[1746407945871,4.638,1814.0,1813.3,7.3340159]
[1746407945872,5.51450314,1813.4,1813.3,6.5620159]
[1746407946075,6.06450314,1813.4,1813.3,0.4120159]
[1746407946287,5.51450314,1813.4,1813.3,0.4120159]
[1746407946696,0.796,1813.5,1813.3,0.4120159]
[1746407946888,5.51411823,1813.6,1813.3,0.4120159]
[1746407947092,6.14515072,1813.6,1813.3,0.4120159]
[1746407947284,0.796,1813.7,1813.3,1.1840159]
[1746407947491,5.51389619,1813.6,1813.3,1.1840159]
[1746407947714,6.30967077,1813.7,1813.3,1.1840159]
[1746407947882,11.82354929,1813.7,1813.3,1.1840159]
[1746407948084,10.94782783,1814.0,1813.4,7.15545853]
[1746407948385,5.51302793,1813.9,1813.4,6.35381358]
[1746407948620,5.51302793,1813.9,1813.4,5.51435147]
[1746407949117,5.51302793,1813.9,1813.5,5.51419856]
[1746407949630,6.42829339,1814.3,1813.8,5.51303896]
[1746407949631,10.15095181,1814.3,1813.8,5.51303896]
[1746407949782,5.51195181,1814.3,1813.9,6.2756402]
[1746407950319,5.5115396,1814.4,1814.0,5.51264256]
[1746407950614,5.51181632,1814.3,1813.9,7.45446295]
[1746407950809,5.51159733,1814.4,1813.9,7.45443107]
[1746407951017,5.51159733,1814.4,1813.9,1.94166792]
[1746407951203,5.51159733,1814.4,1813.9,0.7628]
[1746407951406,5.51159733,1814.4,1813.9,6.27556075]
[1746407951602,11.02332476,1814.4,1813.9,6.27556075]
[1746407951914,5.51159733,1814.4,1814.0,5.51267331]
[1746407952114,5.51154802,1814.4,1814.0,5.51255757]
[1746407952332,5.51178145,1814.3,1813.9,6.2756039]
[1746407952991,5.51126051,1814.5,1814.0,5.5125688]
[1746407953197,6.324147,1814.6,1814.2,5.51192569]
[1746407953419,5.511047,1814.6,1814.3,0.7614]
[1746407954117,0.8018,1814.5,1814.0,0.7614]
[1746407954308,5.51210395,1814.2,1814.0,0.7614]
[1746407954509,5.51195965,1814.3,1814.0,0.7614]
[1746407954791,5.51163727,1814.4,1814.1,0.16497378]
[1746407954999,5.51155277,1814.4,1814.1,0.16497378]
[1746407955329,0.8018,1814.7,1814.1,0.16497378]
[1746407955330,5.51180157,1814.3,1814.1,0.16497378]
[1746407955699,6.06275991,1814.4,1814.1,0.16497378]
[1746407955700,6.86458248,1814.4,1814.1,0.16497378]
[1746407956039,5.51130615,1814.5,1814.2,0.7614]
[1746407956393,5.5115296,1814.4,1814.3,0.16497378]
[1746407957311,5.5112993,1814.5,1814.3,0.16497378]
[1746407957898,5.51103588,1814.6,1814.3,0.16497378]
[1746407958299,5.51116566,1814.5,1814.3,0.16497378]
[1746407958701,5.51146384,1814.4,1814.3,0.16497378]
[1746407959236,7.93052679,1814.4,1814.3,0.16497378]
[1746407959437,6.27870027,1814.3,1813.6,0.762]
[1746407959642,5.51406032,1813.6,1813.3,0.4120159]
[1746407960053,11.02822338,1813.6,1813.3,0.4120159]
[1746407960568,5.51376875,1813.7,1813.3,0.4120159]
[1746407960858,5.51376875,1813.7,1813.3,5.92670484]
[1746407962156,5.51376875,1813.7,1813.3,0.4120159]
[1746407962361,6.33424129,1813.6,1813.3,0.4120159]
[1746407962561,6.06440224,1813.5,1813.3,0.4120159]
[1746407962854,6.33427013,1813.6,1813.3,0.4120159]
[1746407963153,5.51433454,1813.5,1813.3,0.4120159]
[1746407963577,11.02880738,1813.5,1813.3,0.4120159]
[1746407963863,5.51450314,1813.4,1813.3,0.4120159]
[1746407964660,5.51370334,1813.7,1813.3,1.2148159]
[1746407965453,11.02757881,1813.7,1813.3,1.2148159]
[1746407965622,5.51416654,1813.6,1813.3,1.2148159]
[1746407965823,5.51415142,1813.6,1813.3,1.2148159]
[1746407966037,5.51410704,1813.6,1813.3,1.2148159]
[1746407966256,5.51412344,1813.6,1813.3,1.2148159]
[1746407966624,5.51422859,1813.5,1813.3,1.2148159]
[1746407966826,5.51422859,1813.5,1813.3,0.4120159]
[1746407967246,5.51410397,1813.6,1813.3,0.4120159]
[1746407968146,5.51374798,1813.7,1813.3,0.4120159]
[1746407968353,5.83446916,1813.8,1813.3,0.4120159]
[1746407968554,5.51390601,1813.6,1813.3,0.4120159]
[1746407968938,5.51377145,1813.7,1813.3,5.92682163]
[1746407969264,5.51377145,1813.7,1813.4,0.8049]
[1746407969443,11.02764327,1813.7,1813.4,0.96707393]
[1746407969630,5.51393895,1813.6,1813.4,0.96707393]
[1746407970143,5.51376633,1813.7,1813.4,0.96707393]
[1746407970328,5.51400429,1813.6,1813.4,0.16217393]
[1746407970733,11.02814293,1813.6,1813.3,0.4120159]
[1746407971077,5.51400429,1813.6,1813.3,0.4120159]
[1746407971256,5.51400429,1813.6,1813.4,0.16217393]
[1746407971773,5.51400429,1813.6,1813.3,0.4120159]
[1746407971945,5.51377373,1813.7,1813.5,0.16217393]
[1746407972142,5.51377373,1813.7,1813.3,8.05176274]
[1746407972377,5.51377373,1813.7,1813.3,8.01622056]
[1746407972667,5.51377373,1813.7,1813.4,0.15359694]
[1746407973028,5.51377373,1813.7,1813.3,5.89111448]
[1746407973229,5.51390281,1813.6,1813.4,0.15359694]
[1746407973461,5.51390281,1813.6,1813.3,0.37647372]
[1746407973764,5.51378633,1813.7,1813.5,0.15359694]
[1746407973938,0.5513454,1813.7,1813.3,7.53485016]
[1746407974141,5.51342677,1813.8,1813.6,0.15359694]
[1746407974345,5.513591,1813.7,1813.5,0.8039]
[1746407974527,5.51389501,1813.6,1813.4,15.3039]
[1746407975566,5.51389501,1813.6,1813.4,14.5]
[1746407975937,5.513591,1813.7,1813.4,14.5]
[1746407976137,5.513591,1813.7,1813.3,5.89126327]
[1746407976338,5.513591,1813.7,1813.3,7.11226802]
[1746407976670,5.51437718,1813.5,1813.3,0.37647372]
[1746407977872,6.3275755,1813.6,1813.3,0.37647372]
[1746407978172,5.51434739,1813.5,1813.3,0.37647372]
[1746407979777,0.8206,1813.8,1813.3,7.53475156]
[1746407980070,5.93691795,1813.9,1813.4,7.22454503]
[1746407980366,5.93691795,1813.9,1813.5,5.51418921]
[1746407980572,5.93691795,1813.9,1813.5,20.01418921]
[1746407980774,5.93691795,1813.9,1813.6,0.14046282]
[1746407981137,5.51331371,1813.8,1813.6,0.14046282]
[1746407981345,5.513591,1813.7,1813.6,0.14046282]
[1746407982443,6.6584848,1813.8,1813.6,0.14046282]
[1746407982639,5.513591,1813.7,1813.4,15.3159]
[1746407982976,5.51346163,1813.8,1813.5,0.13994729]
[1746407983853,5.93686976,1813.9,1813.5,5.65414178]
[1746407984054,5.93686976,1813.9,1813.5,8.30259318]
[1746407984267,11.45009415,1813.9,1813.5,8.30259318]
[1746407984773,11.02688109,1813.8,1813.5,2.78839869]
[1746407984991,5.51369454,1813.7,1813.5,0.13994729]
[1746407986216,5.51369656,1813.7,1813.5,14.63994729]
[1746407986415,6.34309501,1813.6,1813.5,0.13994729]
[1746407986764,6.34309501,1813.6,1813.3,14.87647372]
[1746407987094,6.34309501,1813.6,1813.3,0.37647372]
[1746407987261,6.34309501,1813.6,1813.4,0.13965272]
[1746407987677,6.34309501,1813.6,1813.3,14.87647372]
[1746407987876,6.34309501,1813.6,1813.5,0.13965272]
[1746407988074,7.52877974,1813.6,1813.3,14.87647372]
[1746407988294,7.52877974,1813.6,1813.5,0.13965272]
[1746407988459,7.52877974,1813.6,1813.3,14.87647372]
[1746407988658,6.34309501,1813.6,1813.5,0.13965272]
[1746407988858,6.34309501,1813.6,1813.3,14.87647372]
[1746407989084,6.34309501,1813.6,1813.5,0.13965272]
[1746407989258,6.34309501,1813.6,1813.3,14.87647372]
[1746407989458,6.34309501,1813.6,1813.5,0.13965272]
[1746407989672,7.52877551,1813.6,1813.3,0.37647372]
[1746407989869,6.34309501,1813.6,1813.5,0.13965272]
[1746407990079,11.85728791,1813.6,1813.3,0.37647372]
[1746407990305,6.34309501,1813.6,1813.5,0.13965272]
[1746407990469,5.51423843,1813.5,1813.3,0.37647372]
[1746407991903,5.51423843,1813.5,1812.5,6.15]
[1746407991904,0.55,1813.4,1812.5,6.15]
[1746407992110,0.55,1812.6,1812.0,0.7632]
[1746407992293,0.55,1812.3,1812.0,0.7632]
[1746407992497,0.55,1812.3,1811.7,9.97491077]
[1746407992706,0.8041,1812.6,1811.9,1.64367263]
[1746407992889,5.51765111,1812.4,1812.0,0.7862]
[1746407993220,5.5170042,1812.6,1812.2,1.64367263]
[1746407993388,5.51723578,1812.6,1812.1,8.51845273]
[1746407993571,5.51723578,1812.6,1812.1,8.57363477]
[1746407993769,5.51707569,1812.6,1812.2,15.35736348]
[1746407993976,5.51707569,1812.6,1812.3,3.0]
[1746407994294,0.55,1812.7,1812.2,15.35736348]
[1746407994617,5.51765463,1812.4,1812.2,15.35736348]
[1746407995105,5.51785024,1812.3,1812.2,15.35736348]
[1746407995320,5.51769604,1812.4,1812.0,0.7862]
[1746407995830,5.51769604,1812.4,1812.1,14.5]
[1746407996507,5.51786994,1812.3,1812.1,14.5]
[1746407996711,5.51771551,1812.4,1812.1,14.5]
[1746407996908,5.51741152,1812.5,1812.1,14.5]
[1746407997074,6.74404404,1812.8,1812.2,5.57321156]
[1746407997271,5.51726667,1812.5,1812.3,0.8137]
[1746407997527,5.51740841,1812.5,1812.1,16.84232]
[1746407997833,5.51785428,1812.3,1812.1,15.3137]
[1746407998039,5.51815472,1812.2,1812.1,15.3137]
[1746407998225,5.51798994,1812.3,1811.9,0.8137]
[1746407998424,5.51736534,1812.5,1811.9,0.86888795]
[1746407998627,5.51736534,1812.5,1812.0,5.51856695]
[1746407998838,11.03488134,1812.5,1812.1,14.5]
[1746407999043,5.51736534,1812.5,1812.1,14.5]
[1746407999215,11.03487231,1812.5,1812.1,14.5]
[1746407999415,11.03487231,1812.5,1812.2,0.14820037]
[1746407999416,5.51762256,1812.4,1812.2,0.14820037]
[1746407999615,5.51762256,1812.4,1812.1,14.5]
[1746407999866,5.51762256,1812.4,1812.2,0.14820037]
[1746408000350,5.51762256,1812.4,1812.1,14.5]
[1746408000848,5.51769577,1812.4,1812.2,0.14820037]
[1746408001028,5.51769577,1812.4,1812.1,14.5]
[1746408001352,5.51677476,1812.7,1812.3,0.7786]
[1746408001556,5.51696206,1812.6,1812.3,0.7786]
[1746408001752,5.51696206,1812.6,1812.4,0.15586436]
[1746408001960,5.51678284,1812.7,1812.4,0.15586436]
[1746408002156,5.51678284,1812.7,1812.3,6.29640699]
[1746408002356,5.51678284,1812.7,1812.5,0.15534824]
[1746408002656,5.51706824,1812.6,1812.3,0.7786]
[1746408002835,5.51707153,1812.6,1812.1,22.05757802]
[1746408003035,5.51707153,1812.6,1812.1,27.57578273]
[1746408003240,5.51707153,1812.6,1812.2,5.51813248]
[1746408003451,5.51707153,1812.6,1812.2,8.27569958]
[1746408004966,5.93994079,1812.8,1812.3,5.51779397]
[1746408005151,16.73036206,1812.9,1812.4,6.28979979]
[1746408005351,11.21407005,1812.9,1812.4,6.28979979]
[1746408005549,14.65585783,1813.0,1812.4,7.47040058]
[1746408005754,5.51587803,1813.0,1812.6,0.7723]
[1746408005931,5.51587803,1813.0,1812.6,6.28918184]
[1746408006126,5.51603821,1812.9,1812.6,0.7723]
[1746408006327,5.51603821,1812.9,1812.7,14.5]
[1746408006758,5.51603821,1812.9,1812.6,0.7723]
[1746408006964,10.43659436,1813.1,1812.6,6.917957]
[1746408007121,5.51663264,1812.7,1812.3,4.921]
[1746408007327,1.3184,1812.9,1812.3,0.792]
[1746408007535,5.5171136,1812.6,1812.3,0.792]
[1746408009070,0.7727,1812.8,1812.1,2.07643386]
[1746408009288,0.7727,1812.2,1811.7,6.15]
[1746408009579,5.51900543,1812.0,1811.5,9.49822034]
[1746408009778,0.7727,1812.6,1811.8,3.04648013]
[1746408009940,5.51777009,1812.4,1811.9,5.51894778]
[1746408010138,5.51777009,1812.4,1812.0,5.51872544]
[1746408010380,5.51759019,1812.4,1812.1,0.8094]
[1746408010568,5.51801099,1812.3,1812.1,0.8094]
[1746408010879,11.21180012,1812.6,1812.1,6.32764919]
[1746408011041,5.6947,1812.6,1812.1,6.32764919]
[1746408011242,12.94697033,1812.6,1812.2,5.51814304]
[1746408011476,12.94697033,1812.6,1812.1,6.32767196]
[1746408011788,5.51681588,1812.7,1812.1,0.8094]
[1746408011955,8.51632833,1812.8,1812.4,5.51753145]
[1746408012149,5.51665773,1812.7,1812.3,5.5176771]
[1746408012379,5.51098238,1812.7,1812.4,14.5]
[1746408013109,5.51724137,1812.5,1812.4,14.5]
[1746408013249,5.51780064,1812.4,1812.1,6.9594]
[1746408013686,5.51780064,1812.4,1811.9,23.63372604]
[1746408013855,5.51797324,1812.3,1811.9,23.63372604]
[1746408014054,5.51780064,1812.4,1811.9,23.63372604]
[1746408014268,5.51780064,1812.4,1812.0,5.51872803]
[1746408014465,5.51779688,1812.4,1812.1,0.14433137]
[1746408014664,6.32768823,1812.5,1811.9,25.99730471]
[1746408014870,5.51772272,1812.4,1812.0,0.14433137]
[1746408015184,5.51778679,1812.4,1812.0,0.14433137]
[1746408015387,5.51778679,1812.4,1812.0,5.66305693]
[1746408015981,5.51709107,1812.6,1812.2,0.8153]
[1746408016341,5.5173826,1812.5,1812.3,0.14543653]
[1746408017071,8.5171284,1812.6,1812.3,0.14543653]
[1746408017412,3.0,1812.6,1812.3,0.14543653]
[1746408017628,12.75954889,1812.7,1812.3,5.66320748]
[1746408017899,11.65680354,1812.7,1812.3,5.66320748]
[1746408018414,5.51680354,1812.7,1812.3,5.66320748]
[1746408018710,5.51680354,1812.7,1812.4,14.5]
[1746408019003,5.5165582,1812.8,1812.4,20.01754396]
[1746408019170,5.51665711,1812.7,1812.4,14.5]
[1746408019371,5.51665711,1812.7,1812.5,0.14543653]
[1746408019569,5.51647522,1812.8,1812.5,0.14543653]
[1746408020182,6.14,1813.0,1812.6,6.31812944]
[1746408020401,6.34086149,1813.1,1812.7,5.51662754]
[1746408020603,5.51546149,1813.1,1812.7,5.51662754]
[1746408020896,5.51546149,1813.1,1812.8,0.14374203]
[1746408021094,8.51523462,1813.2,1812.8,5.66005567]
[1746408021299,0.63403702,1813.2,1812.8,0.14374203]
[1746408021499,9.19637734,1813.4,1813.0,5.51567147]
[1746408021684,3.68167667,1813.4,1813.1,5.51541558]
[1746408021891,3.68167667,1813.4,1813.3,0.781]
[1746408022604,3.68167667,1813.4,1813.3,0.92282702]
[1746408022813,3.68167667,1813.4,1813.3,6.43763427]
[1746408022998,3.68167667,1813.7,1813.3,6.43763427]
[1746408023198,4.23301655,1813.7,1813.3,6.43763427]
[1746408023419,4.23301655,1813.7,1813.4,5.51441312]
[1746408023592,4.23301655,1813.7,1813.3,6.43763427]
[1746408023593,5.51402241,1813.6,1813.3,0.92282702]
[1746408023796,5.51402241,1813.6,1813.5,0.13078273]
[1746408023797,6.27572241,1813.6,1813.5,0.13078273]
[1746408024031,5.51471685,1813.4,1812.9,11.20525977]
[1746408024214,5.51471685,1813.4,1813.0,20.01570239]
[1746408024837,5.51471685,1813.4,1813.0,14.5]
[1746408025003,6.67276442,1813.4,1813.0,20.0156952]
[1746408025204,6.67276442,1813.4,1813.0,14.5]
[1746408025205,5.51480772,1813.3,1813.0,14.5]
[1746408025424,6.67272008,1813.4,1813.0,14.5]
[1746408026124,6.67272008,1813.4,1812.9,16.72099236]
[1746408026325,6.67272008,1813.4,1813.0,5.51569794]
[1746408026645,0.66727201,1813.3,1812.9,20.1894]
[1746408026808,8.51404543,1813.6,1813.1,0.7684]
[1746408027012,5.51423154,1813.5,1813.1,6.28370478]
[1746408027226,5.5146414,1813.4,1813.1,0.7684]
[1746408027920,6.30337542,1813.4,1812.9,20.2501]
[1746408028114,6.14538448,1813.3,1812.9,16.929543]
[1746408028650,6.14538448,1813.3,1812.9,22.4454511]
[1746408028949,0.63033754,1813.3,1812.9,22.44532111]
[1746408029114,6.14525384,1813.3,1812.9,22.44532111]
[1746408029314,11.66034416,1813.3,1812.9,16.929543]
[1746408029647,6.14525384,1813.3,1813.0,0.13225482]
[1746408030013,5.51541558,1813.1,1813.0,0.13225482]
[1746408030411,5.51541558,1813.1,1812.7,6.9791]
[1746408030610,6.12982349,1813.2,1812.7,12.4954963]
[1746408030817,6.12982349,1813.2,1812.8,14.63210759]
[1746408031029,5.51558925,1813.1,1812.8,14.63210759]
[1746408031644,0.61452538,1813.2,1812.8,14.63210759]
[1746408031645,6.12981391,1813.2,1812.8,14.63210759]
[1746408031950,5.51547343,1813.1,1812.8,14.63210759]
[1746408033048,5.51602404,1812.9,1812.8,14.63210759]
[1746408033359,0.61299988,1813.1,1812.8,14.63210759]
[1746408033360,0.61299988,1813.1,1812.8,0.13210759]
[1746408033514,5.51533652,1813.2,1812.8,5.64842866]
[1746408033707,5.51467619,1813.4,1813.0,6.31711003]
[1746408034116,5.51450418,1813.4,1813.1,0.1359624]
[1746408034549,5.51439353,1813.5,1813.1,0.1359624]
[1746408034754,5.51419906,1813.5,1813.1,5.65136904]
[1746408035755,5.51419906,1813.5,1813.1,0.1359624]
[1746408035946,5.51452717,1813.4,1813.1,0.1359624]
[1746408036337,5.51452717,1813.4,1813.2,14.5]
[1746408036875,6.67156669,1813.6,1813.3,0.1359624]
[1746408037065,5.51385635,1813.7,1813.3,0.9362624]
[1746408037266,5.51390616,1813.6,1813.3,0.9362624]
[1746408037573,6.06522077,1813.7,1813.3,0.9362624]
[1746408037774,6.06522077,1813.7,1813.3,6.45096296]
[1746408038741,5.51348033,1813.8,1813.4,5.51436866]
[1746408038972,5.51348033,1813.8,1813.3,6.45087935]
[1746408039179,5.5136375,1813.7,1813.5,0.13360678]
[1746408039381,5.5136375,1813.7,1813.3,6.31491695]
[1746408039581,5.51348033,1813.8,1813.6,0.13360678]
[1746408039879,5.51348033,1813.8,1813.7,0.13360678]
[1746408040073,5.51348033,1813.8,1813.4,5.51445624]
[1746408040274,5.51348033,1813.8,1813.5,0.13360678]
[1746408040680,14.11780401,1813.9,1813.5,20.14779079]
[1746408040846,9.19480401,1813.9,1813.5,14.63360678]
[1746408041047,5.51341238,1813.8,1813.5,14.63360678]
[1746408042769,5.51339259,1813.8,1813.6,0.8286]
[1746408043284,5.51339259,1813.8,1813.7,0.13360678]
[1746408043787,5.51316158,1813.9,1813.7,0.13360678]
[1746408044102,5.92756094,1814.1,1813.7,0.13360678]
[1746408044252,5.51280229,1814.0,1813.7,0.13360678]
[1746408044451,5.51301728,1813.9,1813.7,0.13360678]
[1746408045991,5.51282844,1814.0,1813.7,0.13360678]
[1746408046157,5.51305623,1813.9,1813.7,0.13360678]
[1746408047383,11.02630707,1813.9,1813.7,0.13360678]
[1746408047685,5.51305623,1813.9,1813.7,0.13360678]
[1746408047886,5.51328702,1813.8,1813.7,0.13360678]
[1746408048189,5.51305623,1813.9,1813.7,0.13360678]
[1746408049389,11.02628913,1813.9,1813.7,0.13360678]
[1746408049585,5.51305623,1813.9,1813.7,0.13360678]
[1746408050393,5.51328702,1813.8,1813.7,0.13360678]
[1746408050567,5.51312869,1813.9,1813.7,0.13360678]
[1746408050763,5.51328702,1813.8,1813.7,0.13360678]
[1746408052168,5.51312869,1813.9,1813.7,0.13360678]
[1746408052373,5.51288125,1814.0,1813.7,0.13360678]
[1746408053475,5.51267916,1814.0,1813.7,0.13360678]
[1746408053677,5.51298924,1813.9,1813.7,0.13360678]
[1746408053984,5.51328702,1813.8,1813.7,0.13360678]
[1746408058873,5.51267916,1814.0,1813.7,0.13360678]
[1746408059078,6.10458534,1814.0,1813.7,0.13360678]
[1746408059278,5.51281601,1814.0,1813.7,0.13360678]
[1746408060713,5.51328702,1813.8,1813.7,0.13360678]
[1746408061353,6.30178702,1813.8,1813.7,0.13360678]
[1746408061580,5.51430373,1813.5,1813.2,20.1945]
[1746408061825,5.51430373,1813.5,1813.2,15.2725]
[1746408062124,5.51430373,1813.5,1813.3,0.12168689]
[1746408062432,6.30193072,1813.8,1813.3,0.12168689]
[1746408062587,5.51371201,1813.7,1813.3,5.63638631]
[1746408063103,7.72432379,1813.8,1813.3,5.63638631]
[1746408063104,6.30196297,1813.8,1813.3,11.15099532]